bitfinex/quotes_ETHUSD_20241104
["timestamp","ask_amount","ask_price","bid_price","bid_amount"]
[1730731778162,4.62024,2456.9,2456.4,4.07088]
[1730731778472,4.62024,2456.9,2456.5,0.2277356]
[1730731778645,8.6905,2456.9,2456.6,0.22792268]
[1730731778836,4.07036,2456.8,2456.4,4.43560414]
[1730731779173,4.07036,2456.8,2456.5,0.22792888]
[1730731779337,4.07036,2456.8,2456.3,0.7569]
[1730731779338,4.07036,2456.8,2456.6,0.22792888]
[1730731779535,4.07036,2456.8,2456.4,0.36510406]
[1730731779536,4.07082,2456.6,2456.4,0.36510406]
[1730731779746,4.62066,2456.6,2456.1,0.36510372]
[1730731779934,4.07053,2456.7,2456.2,0.59330133]
[1730731780143,1.30626202,2456.8,2456.3,0.59330133]
[1730731780343,1.30626202,2456.8,2456.4,0.59330133]
[1730731780344,4.07084,2456.5,2456.4,0.59330133]
[1730731780634,5.082924,2456.5,2456.4,0.59381998]
[1730731780837,4.07115,2456.4,2455.7,4.88845]
[1730731781068,4.07111,2456.4,2455.9,4.07181]
[1730731781391,5.082944,2456.5,2455.9,4.07181]
[1730731781392,4.07117,2456.3,2456.0,0.59414104]
[1730731781671,5.083034,2456.5,2456.1,0.59414104]
[1730731781830,4.62095,2456.5,2456.2,0.59414104]
[1730731782037,4.07099,2456.4,2456.3,0.59414104]
[1730731783771,4.62095,2456.5,2456.3,0.59414104]
[1730731784078,4.62095,2456.5,2456.4,0.59414104]
[1730731784380,4.62095,2456.5,2456.4,0.59695947]
[1730731784737,5.490115,2456.5,2456.4,0.59695947]
[1730731785671,4.62095,2456.5,2456.4,0.59695947]
[1730731785900,4.07083,2456.5,2456.4,0.59695947]
[1730731786035,8.14149,2456.6,2456.4,0.59695947]
[1730731786380,4.0707,2456.6,2456.5,0.59695947]
[1730731787262,5.4465,2456.6,2456.5,0.59695947]
[1730731787503,6.85838261,2456.6,2456.5,0.59695947]
[1730731788512,9.85838261,2456.6,2456.5,0.59695947]
[1730731791317,0.55,2456.5,2455.7,1.3236364]
[1730731791521,5.78768261,2456.6,2455.7,1.24220633]
[1730731791522,4.07177,2456.0,2455.7,1.24220633]
[1730731791718,4.07159,2456.1,2455.8,0.59836601]
[1730731791719,4.07149,2456.1,2455.8,0.59836601]
[1730731792026,4.07149,2456.1,2455.7,1.24220633]
[1730731792027,4.07166,2456.0,2455.9,0.59836601]
[1730731793185,8.14315,2456.1,2455.9,0.59836601]
[1730731793523,8.69315,2456.1,2456.0,0.59836601]
[1730731794123,4.62151,2456.1,2456.0,0.59836601]
[1730731794579,7.89647,2456.6,2456.0,4.66994601]
[1730731794900,4.071,2456.4,2456.0,4.07158]
[1730731795116,4.07116,2456.3,2455.9,4.0718]
[1730731795483,4.07097,2456.5,2456.1,0.7639]
[1730731795693,4.07097,2456.5,2456.1,4.83531]
[1730731795876,4.07097,2456.5,2456.3,0.38380739]
[1730731796106,4.0708,2456.6,2456.4,0.98246219]
[1730731796307,4.07083,2456.5,2456.3,0.38380739]
[1730731796489,4.07053,2456.7,2456.4,0.98250711]
[1730731796822,4.07051,2456.7,2456.5,0.59869972]
[1730731796990,4.07051,2456.7,2456.6,0.59869972]
[1730731797317,4.62051,2456.7,2456.3,4.07106]
[1730731797485,4.62051,2456.7,2456.2,4.07123]
[1730731797900,4.62051,2456.7,2456.3,4.07112]
[1730731798413,4.62051,2456.7,2456.1,0.7639]
[1730731798414,4.07097,2456.5,2456.1,0.7639]
[1730731798778,4.07097,2456.5,2456.1,4.83539]
[1730731799311,4.07118,2456.3,2456.1,0.7639]
[1730731799512,4.07121,2456.3,2455.9,0.8279]
[1730731799673,4.07097,2456.5,2456.0,4.15298935]
[1730731799879,4.07097,2456.5,2456.1,4.07148]
[1730731800211,4.62094,2456.5,2456.4,0.98245969]
[1730731800733,0.55,2456.5,2456.4,0.98245969]
[1730731801015,4.62051,2456.7,2456.4,0.98245969]
[1730731801200,4.07082,2456.6,2456.4,0.98245969]
[1730731801779,4.0709,2456.5,2456.1,4.0714]
[1730731801976,4.0709,2456.5,2456.2,0.98260657]
[1730731802176,4.0709,2456.5,2456.3,0.98260657]
[1730731802414,4.0709,2456.5,2455.9,4.89959]
[1730731802415,4.6209,2456.5,2456.4,0.5987428]
[1730731802650,6.375056,2456.5,2456.4,0.5987428]
[1730731803646,4.6209,2456.5,2456.4,0.5987428]
[1730731804356,0.55,2456.5,2456.4,0.5987428]
[1730731804519,4.07083,2456.5,2456.4,0.5987428]
[1730731804715,4.62083,2456.5,2456.4,0.5987428]
[1730731805948,4.07083,2456.5,2456.4,0.5987428]
[1730731806165,4.07048,2456.8,2456.4,5.4874328]
[1730731806374,5.93457659,2457.1,2456.5,4.6695628]
[1730731806375,4.07025,2456.9,2456.5,4.6695628]
[1730731806583,4.07025,2456.9,2456.6,0.5987428]
[1730731806781,4.07025,2456.9,2456.7,0.5987428]
[1730731806981,4.07025,2456.9,2456.8,0.5987428]
[1730731807272,4.07002,2457.0,2456.8,0.5987428]
[1730731807491,4.06989,2457.1,2456.9,0.5987428]
[1730731807633,0.0614935,2457.2,2457.0,0.5987428]
[1730731807835,0.0614935,2457.2,2457.1,0.5987428]
[1730731808055,0.0614935,2457.2,2457.1,4.6685728]
[1730731808273,0.0614935,2457.2,2457.1,4.74996666]
[1730731808573,0.0614935,2457.2,2457.1,4.96432386]
[1730731808781,0.0614935,2457.2,2457.1,8.48245957]
[1730731809769,0.0614935,2457.2,2457.1,9.18648868]
[1730731809950,4.06798,2458.3,2457.9,0.7522]
[1730731810154,4.06798,2458.3,2458.0,0.23016623]
[1730731810357,4.06866,2457.9,2457.4,4.06933]
[1730731810681,4.06866,2457.9,2457.3,0.7522]
[1730731810682,4.06901,2457.6,2457.5,0.22988857]
[1730731811249,4.06896,2457.7,2457.3,0.7522]
[1730731811461,4.06896,2457.7,2457.4,0.22977323]
[1730731811638,4.06894,2457.7,2457.3,0.7522]
[1730731811838,4.06894,2457.7,2457.4,0.22977203]
[1730731812172,4.06894,2457.7,2457.3,0.7522]
[1730731812592,4.06865,2457.9,2457.3,0.7522]
[1730731812748,4.06831,2458.1,2457.6,4.069]
[1730731812940,2.06109276,2458.2,2457.8,0.7605]
[1730731812941,5.33073276,2458.2,2457.8,0.7605]
[1730731813143,4.06804,2458.2,2457.8,4.82915]
[1730731813653,4.06804,2458.2,2457.8,4.91051516]
[1730731813859,4.06796,2458.3,2457.8,4.82917]
[1730731814059,0.0614935,2458.4,2457.8,0.84186516]
[1730731814387,0.0614935,2458.4,2458.3,4.06785]
[1730731814695,0.0614935,2458.4,2458.3,7.37835968]
[1730731814869,0.0614935,2458.4,2458.3,7.29703247]
[1730731815305,0.0614935,2458.4,2458.3,7.06785]
[1730731815462,0.0614935,2458.4,2458.3,3.0]
[1730731815661,0.0614935,2458.4,2458.3,4.06785]
[1730731815862,0.0614935,2458.4,2458.3,4.14919355]
[1730731816115,0.0614935,2458.4,2458.3,4.06785]
[1730731816555,0.0614935,2458.4,2458.2,4.82837]
[1730731816556,0.0614935,2458.4,2458.2,0.7605]
[1730731816760,0.0614935,2458.4,2457.8,4.06858]
[1730731816761,4.1292335,2458.4,2457.9,3.8182]
[1730731817010,4.1292335,2458.4,2457.6,0.8182]
[1730731817011,4.06872,2457.8,2457.6,0.8182]
[1730731817158,8.13691,2458.0,2457.6,0.8182]
[1730731817361,4.89897,2458.3,2457.0,0.50505748]
[1730731817362,8.1375,2457.8,2457.2,8.95734]
[1730731817568,4.06868,2457.8,2457.3,0.22856719]
[1730731817766,4.06868,2457.8,2457.2,4.88777]
[1730731817767,4.06908,2457.6,2457.2,0.8182]
[1730731818158,4.06944,2457.4,2457.2,0.8182]
[1730731818423,4.06944,2457.4,2456.8,4.29876674]
[1730731818424,4.06944,2457.4,2456.9,1.04676674]
[1730731818711,4.06952,2457.3,2456.9,1.12815132]
[1730731818889,4.06952,2457.3,2456.9,0.8182]
[1730731819402,4.06986,2457.1,2456.6,4.85284]
[1730731819575,4.06968,2457.2,2456.7,4.07045]
[1730731819898,4.06968,2457.2,2456.8,0.08139677]
[1730731820108,4.06944,2457.4,2456.9,4.07014]
[1730731820764,8.1389,2457.4,2456.9,4.07014]
[1730731820972,4.06944,2457.4,2456.9,4.07014]
[1730731821303,4.06944,2457.4,2456.6,0.7823]
[1730731821304,4.06961,2457.3,2456.7,4.07038]
[1730731821610,4.06961,2457.3,2456.8,4.07023]
[1730731821815,4.0697,2457.2,2456.7,4.07038]
[1730731822304,4.0697,2457.2,2456.6,0.7823]
[1730731822305,4.0697,2457.2,2456.6,3.7823]
[1730731822509,4.0697,2457.2,2456.7,4.15186683]
[1730731822669,4.06984,2457.1,2456.6,7.85292]
[1730731823069,0.55,2457.1,2456.5,0.42495743]
[1730731823393,4.07058,2456.7,2456.5,0.42495743]
[1730731823574,4.07028,2456.9,2456.5,0.42495743]
[1730731824218,8.14117,2456.7,2456.5,0.42495743]
[1730731824368,4.07051,2456.7,2456.2,0.22902698]
[1730731824562,4.07051,2456.7,2456.1,4.07139]
[1730731824563,4.07066,2456.6,2456.1,4.07139]
[1730731824802,4.07066,2456.6,2456.1,4.49628209]
[1730731825408,4.07051,2456.7,2456.1,4.49628209]
[1730731826112,4.07051,2456.7,2456.1,8.56763209]
[1730731826416,4.07051,2456.7,2456.2,4.07129]
[1730731826563,0.7715,2457.0,2456.4,0.8148]
[1730731826768,4.07002,2457.0,2456.5,4.0708]
[1730731827169,4.07078,2456.6,2456.2,6.60918064]
[1730731827477,4.07099,2456.4,2456.2,5.79978064]
[1730731827685,4.07116,2456.3,2456.2,5.79978064]
[1730731828604,5.40266,2456.3,2456.2,5.79978064]
[1730731830317,0.55,2456.3,2456.2,5.79978064]
[1730731830525,0.7815,2456.9,2456.2,5.79978064]
[1730731830724,4.0711,2456.4,2456.2,5.79978064]
[1730731830881,4.07116,2456.3,2456.2,5.79978064]
[1730731832093,4.7032037,2456.3,2456.2,5.79978064]
[1730731837490,5.4782037,2456.3,2456.2,5.79978064]
[1730731837689,7.39246214,2456.3,2456.2,5.79978064]
[1730731838420,10.40246214,2456.3,2456.2,5.79978064]
[1730731838783,10.40246214,2456.3,2454.8,4.07353]
[1730731838784,0.55,2455.6,2454.8,0.7716]
[1730731839143,4.07339,2455.0,2454.6,0.42489937]
[1730731839422,0.08054756,2454.9,2454.6,4.49886937]
[1730731839786,4.62318,2455.1,2454.6,4.49886937]
[1730731839977,0.08075296,2455.0,2454.6,4.49886937]
[1730731840618,0.08075296,2455.0,2454.6,8.57275937]
[1730731840832,0.08075296,2455.0,2454.6,4.49878937]
[1730731841192,4.15415296,2455.0,2454.6,0.42489937]
[1730731841412,0.08075296,2455.0,2454.6,4.49887937]
[1730731841594,4.87135,2455.7,2454.9,4.87813]
[1730731841795,4.87135,2455.7,2455.0,0.08146253]
[1730731841796,0.7596,2455.5,2455.0,0.08146253]
[1730731842016,0.7596,2455.5,2454.6,9.37e-06]
[1730731842017,4.07381,2454.7,2454.6,9.37e-06]
[1730731842302,4.07381,2454.7,2453.5,0.8760935]
[1730731842303,4.07564,2453.6,2453.5,0.0614935]
[1730731842529,6.62643471,2453.6,2453.5,0.0614935]
[1730731842738,4.23483921,2453.6,2453.5,0.0614935]
[1730731843024,4.78483921,2453.6,2453.5,0.0614935]
[1730731843186,9.36819991,2453.6,2453.5,0.0614935]
[1730731843387,9.28673731,2453.6,2453.5,0.0614935]
[1730731843623,5.21109731,2453.6,2453.5,0.0614935]
[1730731843823,5.29255991,2453.6,2453.5,0.0614935]
[1730731844715,9.36819991,2453.6,2453.5,0.0614935]
[1730731844919,9.28673731,2453.6,2453.5,0.0614935]
[1730731845124,5.21109731,2453.6,2453.5,0.0614935]
[1730731845342,4.66109731,2453.6,2453.5,0.0614935]
[1730731846110,9.36819991,2453.6,2453.5,0.0614935]
[1730731846433,9.28673731,2453.6,2453.5,0.0614935]
[1730731848303,10.62295804,2453.6,2453.5,0.0614935]
[1730731848465,11.41115804,2453.6,2453.5,0.0614935]
[1730731850251,14.41115804,2453.6,2453.5,0.0614935]
[1730731853597,4.0768,2452.9,2452.8,0.8146]
[1730731853763,4.0768,2452.9,2452.5,0.22755532]
[1730731853764,3.22632978,2452.8,2452.5,0.7972]
[1730731853966,4.65741307,2452.9,2452.5,0.7972]
[1730731854167,0.07395081,2452.7,2452.5,0.7972]
[1730731854373,8.6601807,2452.9,2452.5,0.7972]
[1730731854588,0.0739114,2452.6,2452.5,0.7972]
[1730731854762,4.07723,2452.7,2452.5,0.7972]
[1730731855110,0.0715495,2452.6,2452.5,0.7972]
[1730731855342,4.0773,2452.6,2452.5,0.7972]
[1730731855606,0.07161306,2452.6,2452.2,0.8707935]
[1730731855769,8.73236376,2452.6,2452.2,0.0614935]
[1730731856123,9.2111607,2452.3,2452.2,0.0614935]
[1730731856457,9.28235913,2452.3,2452.2,0.0614935]
[1730731857899,4.69899843,2452.3,2452.2,0.0614935]
[1730731858098,4.78046103,2452.3,2452.2,0.0614935]
[1730731858966,11.08164383,2452.3,2452.2,0.0614935]
[1730731859165,11.00018123,2452.3,2452.2,0.0614935]
[1730731859388,11.00018123,2452.3,2451.3,0.8263]
[1730731859389,4.07925,2451.5,2451.3,0.8263]
[1730731859605,8.6622807,2451.7,2451.3,0.8263]
[1730731859807,0.07018755,2451.4,2451.3,0.8263]
[1730731860007,0.07017998,2451.4,2451.3,0.8263]
[1730731860171,0.0814626,2451.6,2451.3,0.8263]
[1730731860378,0.07024222,2451.5,2451.3,0.8263]
[1730731860732,0.07024222,2451.5,2451.4,0.08158589]
[1730731860917,0.07024222,2451.5,2451.3,0.8263]
[1730731861227,4.07871,2451.8,2451.4,0.07154881]
[1730731861579,8.45981,2452.3,2451.4,4.15074881]
[1730731861580,4.07825,2452.1,2451.4,4.15074881]
[1730731861780,0.0814626,2452.0,2451.4,4.15081881]
[1730731862011,4.07774,2452.4,2451.6,4.07896]
[1730731862199,4.07799,2452.2,2451.6,4.07896]
[1730731862528,0.0814626,2452.3,2451.7,0.7739]
[1730731862727,5.73855966,2452.6,2452.2,4.07787]
[1730731862728,1.15519896,2452.6,2452.2,4.07787]
[1730731862966,4.07676,2453.0,2452.4,0.7739]
[1730731863253,8.7417333,2452.9,2452.4,0.7739]
[1730731863481,4.5833607,2452.9,2452.4,0.7739]
[1730731863614,4.07656,2453.1,2452.5,0.08153963]
[1730731863812,8.2345826,2453.1,2452.5,0.08153963]
[1730731864025,4.07656,2453.1,2452.5,0.08153963]
[1730731864254,4.1580226,2453.1,2452.5,0.22822379]
[1730731864411,8.2345926,2453.1,2452.5,0.22822379]
[1730731864620,4.07664,2453.0,2452.5,0.22822379]
[1730731865463,4.07664,2453.0,2452.5,0.30984754]
[1730731865639,0.0814626,2453.1,2452.5,0.08153967]
[1730731865810,4.07666,2453.0,2452.6,0.22830384]
[1730731866010,4.07666,2453.0,2452.4,4.85152]
[1730731866215,4.07666,2453.0,2452.5,0.22853979]
[1730731866456,4.07666,2453.0,2452.6,0.22853979]
[1730731866687,4.07666,2453.0,2452.7,0.22853979]
[1730731866852,0.0814626,2453.1,2452.5,4.07746]
[1730731867052,4.07665,2453.0,2452.6,0.22859909]
[1730731867252,4.07665,2453.0,2452.7,0.22859909]
[1730731867488,4.07665,2453.0,2452.8,0.22859909]
[1730731867692,4.07665,2453.0,2452.6,0.36627598]
[1730731867988,4.07665,2453.0,2452.7,0.22892039]
[1730731868192,0.0814626,2453.1,2452.8,0.59521263]
[1730731868398,4.62627,2453.3,2452.9,1.3759646]
[1730731868612,4.07592,2453.5,2453.0,0.22892039]
[1730731868895,4.07592,2453.5,2452.9,4.8569]
[1730731868896,4.1573826,2453.5,2453.1,0.59582961]
[1730731869093,8.2332826,2453.5,2453.2,0.22892039]
[1730731869393,4.07597,2453.4,2453.3,0.22892039]
[1730731869704,4.1573626,2453.5,2453.3,0.22892039]
[1730731869865,8.2333026,2453.5,2452.9,0.7801]
[1730731870188,8.2333026,2453.5,2453.0,0.59687088]
[1730731870433,8.15179,2453.5,2453.1,0.59687088]
[1730731870565,8.15179,2453.5,2452.9,0.7801]
[1730731870566,8.15179,2453.5,2453.2,0.59687088]
[1730731870763,8.2332526,2453.5,2453.3,0.59687088]
[1730731871097,4.07589,2453.5,2453.4,0.22955964]
[1730731871295,4.07589,2453.5,2452.9,4.8569]
[1730731871296,4.1573526,2453.5,2452.9,4.8569]
[1730731871452,4.1573526,2453.5,2453.4,0.59862885]
[1730731871652,0.55,2453.4,2452.9,0.7801]
[1730731871892,4.62663,2453.1,2453.0,0.59867459]
[1730731872191,4.7080926,2453.1,2453.0,0.59867459]
[1730731872552,5.4632926,2453.1,2453.0,0.59867459]
[1730731873793,6.41725786,2453.1,2453.0,0.59867459]
[1730731874377,4.07636,2453.2,2453.0,0.59867459]
[1730731874723,8.15282,2453.2,2453.1,0.59867459]
[1730731874919,4.07661,2453.1,2452.8,0.7993]
[1730731875212,4.07661,2453.1,2452.9,0.59902733]
[1730731875415,4.07661,2453.1,2452.8,0.7993]
[1730731875416,4.07661,2453.1,2453.0,0.59902733]
[1730731876324,4.62661,2453.1,2453.0,0.59902733]
[1730731876628,4.7080726,2453.1,2453.0,0.59902733]
[1730731876984,4.07661,2453.1,2453.0,0.59902733]
[1730731877526,4.1580726,2453.1,2453.0,0.59902733]
[1730731878137,4.07636,2453.2,2453.0,0.59902733]
[1730731878456,4.07636,2453.2,2452.5,0.85653502]
[1730731878457,4.07657,2453.1,2452.5,4.85245]
[1730731878659,4.07671,2453.0,2452.6,0.36889941]
[1730731878858,4.07671,2453.0,2452.7,0.59945025]
[1730731879153,4.07671,2453.0,2452.8,0.59945025]
[1730731879350,4.07671,2453.0,2452.9,0.59945025]
[1730731880159,5.42611,2453.0,2452.9,0.59945025]
[1730731880361,6.91616667,2453.0,2452.9,0.59945025]
[1730731880624,9.91616667,2453.0,2452.9,0.59945025]
[1730731880856,9.83470407,2453.0,2452.9,0.59945025]
[1730731881055,9.83470407,2453.0,2452.9,8.4e-07]
[1730731881259,14.84470407,2453.0,2452.9,8.4e-07]
[1730731881563,14.84470407,2453.0,2451.4,4.07916]
[1730731881564,4.07841,2452.0,2451.6,0.8184]
[1730731881744,4.07862,2451.9,2451.7,0.36901186]
[1730731881926,4.07862,2451.9,2451.7,0.36898489]
[1730731882155,4.07862,2451.9,2451.8,0.36898489]
[1730731882355,4.1600826,2451.9,2451.8,0.36898489]
[1730731882555,4.07862,2451.9,2451.8,0.36898489]
[1730731883370,4.07841,2452.0,2451.8,0.36898489]
[1730731883525,4.0783,2452.0,2451.9,0.36898489]
[1730731883927,4.1597626,2452.0,2451.9,0.36898489]
[1730731884541,4.7097626,2452.0,2451.9,0.36898489]
[1730731884839,6.01930222,2452.0,2451.9,0.36898489]
[1730731886159,5.4842626,2452.0,2451.9,0.36898489]
[1730731886529,4.7097626,2452.0,2451.9,0.36898489]
[1730731887958,4.07758,2452.5,2451.9,4.44736489]
[1730731888174,4.0773,2452.6,2452.0,0.36898489]
[1730731888382,0.0814626,2452.5,2452.2,0.8173]
[1730731888538,4.07748,2452.5,2452.3,0.36898489]
[1730731888737,6.24316407,2453.0,2452.2,0.8173]
[1730731888738,0.7579,2453.0,2452.4,0.36898489]
[1730731888940,0.7579,2453.0,2452.5,0.36814082]
[1730731888941,4.07664,2453.0,2452.5,0.36814082]
[1730731889156,0.0814626,2452.9,2452.6,0.36814082]
[1730731889363,0.0814626,2452.9,2452.7,0.36814082]
[1730731889545,0.0814626,2452.9,2452.8,0.36814082]
[1730731889850,0.0814626,2453.5,2452.8,4.07695]
[1730731890036,0.05567279,2453.4,2453.0,4.87722]
[1730731890235,0.05567279,2453.4,2453.1,0.36814356]
[1730731890591,0.0814626,2453.8,2453.2,0.36814356]
[1730731890746,0.0814626,2453.8,2453.0,0.8006]
[1730731890747,4.13147797,2453.3,2453.0,0.8006]
[1730731891077,4.21273978,2453.2,2453.1,0.36803952]
[1730731891228,4.07686,2452.9,2452.7,0.36810541]
[1730731891428,4.07654,2453.1,2452.8,0.36810541]
[1730731891627,0.0814626,2453.2,2452.9,0.36810541]
[1730731891825,4.1577726,2453.2,2453.0,0.3681256]
[1730731892045,4.07647,2453.1,2452.6,4.85102]
[1730731892252,4.07665,2453.0,2452.6,0.7738]
[1730731892557,4.07664,2453.0,2452.7,0.36813953]
[1730731892766,4.07611,2453.4,2452.7,0.36813953]
[1730731892920,4.07631,2453.2,2452.8,0.36813953]
[1730731893126,4.1576126,2453.3,2452.9,0.36813953]
[1730731893335,4.1576426,2453.3,2453.0,0.59819211]
[1730731893541,0.0814626,2453.3,2453.1,0.59816644]
[1730731893726,4.07578,2453.6,2453.2,1.39068295]
[1730731894065,4.1570226,2453.7,2453.3,0.23005258]
[1730731894268,4.07573,2453.6,2453.2,0.7925]
[1730731894563,4.07573,2453.6,2453.3,0.23000528]
[1730731894723,4.1571926,2453.6,2453.4,0.23000528]
[1730731894928,4.1571926,2453.6,2453.2,0.7925]
[1730731895126,4.1571926,2453.6,2453.3,0.22998805]
[1730731895127,4.07588,2453.5,2453.3,0.22998805]
[1730731895354,4.07599,2453.4,2453.2,0.7925]
[1730731895569,4.07571,2453.6,2453.2,0.7925]
[1730731895828,8.15148,2453.6,2453.3,0.22994774]
[1730731896045,4.07605,2453.4,2453.2,0.7925]
[1730731896245,4.1575126,2453.4,2453.2,0.7925]
[1730731896464,0.0814626,2453.4,2453.0,0.36793555]
[1730731896670,0.0814626,2453.4,2453.1,0.22992838]
[1730731896671,4.1574326,2453.4,2453.1,0.22992838]
[1730731896973,4.07655,2453.1,2452.9,1.13049456]
[1730731897258,4.07655,2453.1,2453.0,0.22992625]
[1730731897465,4.07655,2453.1,2452.9,0.7626]
[1730731898363,8.15269,2453.2,2452.9,0.7626]
[1730731898536,8.15269,2453.2,2452.9,0.99251168]
[1730731898728,8.15269,2453.2,2452.9,0.7626]
[1730731899247,4.07567,2453.6,2452.9,0.99249746]
[1730731899248,4.07654,2453.1,2452.9,0.99249746]
[1730731899564,4.07654,2453.1,2452.9,0.7626]
[1730731900145,0.0814626,2453.4,2452.9,0.7626]
[1730731900350,8.15244,2453.3,2452.9,0.7626]
[1730731900667,8.20781136,2453.3,2452.9,0.7626]
[1730731900837,8.20775136,2453.3,2452.9,0.7626]
[1730731901267,4.07634,2453.2,2452.9,0.7626]
[1730731901427,0.05520745,2453.1,2452.9,0.7626]
[1730731902269,4.13167745,2453.1,2452.9,0.7626]
[1730731902641,0.05520745,2453.1,2452.9,0.7626]
[1730731903064,0.05520745,2453.1,2452.7,0.22988226]
[1730731903065,4.07664,2453.0,2452.7,0.22988226]
[1730731903269,0.05517425,2452.9,2452.6,5.14017849]
[1730731903471,4.07648,2453.1,2452.7,0.22988516]
[1730731903775,0.05515215,2453.0,2452.7,0.22988516]
[1730731904130,4.07689,2452.9,2452.7,0.22988516]
[1730731904335,4.13179215,2453.0,2452.6,0.833]
[1730731904581,0.05501896,2452.8,2452.6,1.14442294]
[1730731904883,0.05505352,2452.7,2452.6,1.06288516]
[1730731905175,0.05505352,2452.7,2452.5,0.22988516]
[1730731905176,4.13218352,2452.7,2452.5,0.22988516]
[1730731905390,4.13218352,2452.7,2452.4,0.22988516]
[1730731905391,4.1587626,2452.6,2452.4,0.22988516]
[1730731905674,4.1587626,2452.6,2452.3,0.7682]
[1730731905675,0.0551732,2452.6,2452.3,0.7682]
[1730731905882,0.0814626,2452.9,2452.3,0.7682]
[1730731905883,4.07723,2452.7,2452.3,0.7682]
[1730731906035,0.05491811,2452.5,2452.3,0.7682]
[1730731906241,8.2359526,2452.7,2452.3,0.7682]
[1730731906546,4.13220014,2452.6,2452.3,0.7682]
[1730731906975,0.05489014,2452.6,2452.3,0.99811441]
[1730731907186,4.07748,2452.5,2452.3,0.99811441]
[1730731907395,4.0778,2452.4,2452.1,1.00501441]
[1730731907557,4.07782,2452.3,2452.1,1.00501441]
[1730731907759,4.07782,2452.3,2452.1,0.7751]
[1730731908010,4.07782,2452.3,2452.1,0.22991441]
[1730731908011,4.13267746,2452.2,2452.1,0.22991441]
[1730731908159,4.07813,2452.1,2451.9,1.00501441]
[1730731908480,0.05456347,2452.0,2451.8,0.22991441]
[1730731908641,8.15606,2452.2,2451.8,0.22991441]
[1730731908845,4.0783,2452.0,2451.8,0.22991441]
[1730731909043,0.05454664,2451.9,2451.8,0.22991441]
[1730731909256,0.05454664,2451.9,2451.7,0.7751]
[1730731909443,0.05454664,2451.9,2451.6,0.22991441]
[1730731909444,4.07863,2451.8,2451.6,0.22991441]
[1730731909639,0.05444646,2451.7,2451.5,0.7506]
[1730731909841,4.07863,2451.8,2451.5,0.7506]
[1730731910094,0.05444451,2451.7,2451.5,0.7506]
[1730731910258,4.21472711,2451.7,2451.5,0.7506]
[1730731910458,8.29361711,2451.7,2451.5,0.7506]
[1730731910654,4.13326451,2451.7,2451.5,0.7506]
[1730731911059,0.05444451,2451.7,2451.6,4.07896]
[1730731911371,1.26687842,2452.4,2451.6,4.07896]
[1730731911372,0.8041,2452.6,2452.0,0.7506]
[1730731911578,0.8041,2452.6,2452.1,4.07812]
[1730731911579,4.88147,2452.6,2452.1,4.07812]
[1730731911944,4.88147,2452.6,2452.0,0.7506]
[1730731912182,4.07756,2452.5,2452.0,0.98041597]
[1730731912481,4.07756,2452.5,2452.0,0.7506]
[1730731912684,4.07756,2452.5,2452.0,4.82886]
[1730731913281,4.1590226,2452.5,2452.0,4.82886]
[1730731913793,4.07787,2452.3,2452.0,0.7506]
[1730731913949,4.07799,2452.2,2452.0,0.7506]
[1730731914143,4.07799,2452.2,2451.6,4.07882]
[1730731914144,4.07838,2452.0,2451.8,0.98049557]
[1730731914344,4.07862,2451.9,2451.6,0.7506]
[1730731914589,0.8855626,2452.1,2451.2,8.58296628]
[1730731914590,0.55,2452.0,2451.4,0.7506]
[1730731914746,4.07852,2451.9,2451.4,0.98051452]
[1730731914949,4.07873,2451.8,2451.4,0.98051452]
[1730731915533,4.07881,2451.7,2451.4,0.98051452]
[1730731915658,4.07881,2451.7,2451.4,0.7506]
[1730731916547,8.15776,2451.7,2451.4,0.98051452]
[1730731916763,4.07881,2451.7,2451.4,0.7506]
[1730731917188,4.07837,2452.0,2451.5,4.07905]
[1730731917385,4.07837,2452.0,2451.6,4.07896]
[1730731917543,0.0814626,2452.1,2451.7,4.07878]
[1730731917744,4.1596626,2452.1,2451.6,4.07896]
[1730731917992,4.07783,2452.3,2451.9,0.8267]
[1730731918149,4.1592926,2452.3,2451.9,0.8267]
[1730731919650,0.05249289,2452.2,2451.9,0.8267]
[1730731919879,4.07797,2452.2,2451.9,0.8267]
[1730731920180,0.0523087,2452.1,2451.9,4.90515]
[1730731920386,0.0523087,2452.1,2451.9,4.9866423]
[1730731920589,0.84605709,2452.9,2452.0,0.8132]
[1730731920809,4.07699,2452.8,2452.3,4.07775]
[1730731921296,4.07721,2452.7,2452.2,4.89114]
[1730731921645,4.07721,2452.7,2452.3,0.22985902]
[1730731921848,4.07715,2452.7,2452.3,4.07779]
[1730731922357,4.07697,2452.8,2452.4,0.08154475]
[1730731922618,0.7743,2453.1,2452.4,0.08154475]
[1730731922619,4.0764,2453.2,2452.6,0.8132]
[1730731922884,0.0814626,2453.4,2452.6,0.8132]
[1730731923140,0.92751969,2453.8,2453.1,4.88964]
[1730731923300,4.07538,2453.8,2453.2,0.0815142]
[1730731923499,1.62035709,2454.0,2453.2,0.0815142]
[1730731923500,9.0060026,2454.0,2453.2,0.0815142]
[1730731923695,1.62035709,2454.5,2453.7,4.07538]
[1730731923909,4.07466,2454.2,2453.8,4.8885]
[1730731924110,4.07466,2454.2,2453.8,0.8132]
[1730731924327,4.07488,2454.1,2453.8,0.8132]
[1730731924724,4.07466,2454.2,2453.8,0.8132]
[1730731925041,4.07492,2454.1,2453.8,0.8132]
[1730731925214,1.623458,2454.0,2453.5,0.7655]
[1730731925537,4.889948,2454.0,2453.5,0.7655]
[1730731925743,4.07475,2454.2,2453.7,4.07546]
[1730731925902,4.07475,2454.2,2453.8,4.0753]
[1730731926103,4.07475,2454.2,2453.5,0.7655]
[1730731926104,8.14951,2454.2,2453.6,4.07552]
[1730731926303,0.0814626,2454.4,2453.5,0.7655]
[1730731926304,4.07512,2454.0,2453.5,0.7655]
[1730731926505,4.07526,2453.9,2453.5,0.99491034]
[1730731926815,8.15052,2453.9,2453.5,0.7655]
[1730731927152,4.07501,2454.0,2453.5,4.84129]
[1730731927335,4.07493,2454.1,2453.6,4.1571309]
[1730731927509,4.07499,2454.0,2453.5,4.84129]
[1730731927849,4.07493,2454.1,2453.6,4.07555]
[1730731928151,4.07493,2454.1,2453.5,4.84121]
[1730731928152,4.07501,2454.0,2453.5,4.84121]
[1730731928353,4.07501,2454.0,2453.5,4.8412]